{"text_format":"1","workbook":"xlsx","n_sheets":3,"sheets":["대시보드","장비 목록","피벗 데이터"],"not_rendered":{"charts":0,"images":0,"macros":1,"external_links":0,"defined_names":13,"comments":0,"pivot_tables":1},"unopened":[],"bounds":{"document_bytes":16777216,"sheet_cells":100000,"rows_first":2000,"rows_last":500,"rows_between":2000,"halvings":0,"cell_chars":16384,"cell_head_chars":4096},"cells_cut":0,"cells_raw":0,"read":"whole","date_system":"1900"}

{"sheet":"대시보드","index":0,"n_rows":20,"n_cols":6,"rows_kept":20,"cut":false,"hidden":false,"merged":[]}
[null,"대시보드"]
[]
[]
[null,null,null,null,null,"총 개수"]
[null,null,null,null,null,{"$f":"GETPIVOTDATA(\"개수\",'피벗 데이터'!$B$11)","v":3}]
[]
[null,null,null,null,null,"월간 총 비용"]
[null,null,null,null,null,{"$f":"GETPIVOTDATA(\"월간 총 비용\",'피벗 데이터'!$B$11)","v":1765594.3035068673}]
[]
[null,null,null,null,null,"운영 비용"]
[null,null,null,null,null,{"$f":"GETPIVOTDATA(\"운영 비용\",'피벗 데이터'!$B$11)","v":605000}]
[]
[null,null,null,null,null,"월간 감가 상각"]
[null,null,null,null,null,{"$f":"GETPIVOTDATA(\"월 감가 상각\",'피벗 데이터'!$B$11)","v":659722.22222222225}]
[]
[null,null,null,null,null,"상환 금액"]
[null,null,null,null,null,{"$f":"GETPIVOTDATA(\"상환 금액\",'피벗 데이터'!$B$11)","v":1160594.3035068673}]
[]
[null,null,null,null,null,"현재 가치"]
[null,null,null,null,null,{"$f":"GETPIVOTDATA(\"현재 가치\",'피벗 데이터'!$B$11)","v":36534931.506849311}]

{"sheet":"장비 목록","index":1,"n_rows":9,"n_cols":20,"rows_kept":9,"cut":false,"hidden":false,"merged":[]}
[null,"장비 목록"]
[]
[null,null,null,"남은 월간 상환 금액이 다음보다 적을 경우 강조 표시: ",20]
[]
[null,"자산 또는 \n일련 번호","항목 설명\n(제조사 및 모델)","위치","상태","공급업체","남은 서비스 연 수 ","초기 가치","계약금","구매 또는 \n임대 날짜","대여 기간 \n(년)","이율","월간 운영 비용","계약 마감 시 \n예상 가치","남은 월간 \n상환 금액","월간 상환금","월간 총 비용","월간 감가 상각\n(직선)","월간 감가 상각\n(직선)2","현재 가치"]
[null,123,"제조사 모델 1","본점","좋음","현지",5,30000000,5000000,"2011-01-15",4,0.1,200000,20000000,{"$f":"IFERROR(SUMPRODUCT(--(DAY(ROW(OFFSET($A$1,,,DATE(YEAR(Equipment[[#This Row],[구매 또는 \n임대 날짜]])+Equipment[[#This Row],[대여 기간 \n(년)]],MONTH(Equipment[[#This Row],[구매 또는 \n임대 날짜]])-1,DAY(Equipment[[#This Row],[구매 또는 \n임대 날짜]]))-TODAY()))+DATE(YEAR(Equipment[[#This Row],[구매 또는 \n임대 날짜]])+Equipment[[#This Row],[대여 기간 \n(년)]],MONTH(Equipment[[#This Row],[구매 또는 \n임대 날짜]]),DAY(Equipment[[#This Row],[구매 또는 \n임대 날짜]]))-1)=DAY(Equipment[[#This Row],[구매 또는 \n임대 날짜]]))),0)","v":24},{"$f":"IFERROR(-(Equipment[초기 가치]>0)*(Equipment[초기 가치]<>Equipment[계약금])*PMT(Equipment[이율]/MonthsInYear,Equipment[대여 기간 \n(년)]*MonthsInYear,Equipment[초기 가치]-Equipment[계약금]),0)","v":634064.58586867969},{"$f":"Equipment[[#This Row],[월간 상환금]]+Equipment[월간 운영 비용]","v":834064.58586867969},{"$f":"IFERROR((Equipment[초기 가치]>0)*SLN(Equipment[초기 가치],Equipment[계약 마감 시 \n예상 가치],Equipment[대여 기간 \n(년)]),0)","v":2500000},{"$f":"IFERROR(Equipment[월간 감가 상각\n(직선)]/MonthsInYear,0)","v":208333.33333333334},{"$f":"IFERROR(Equipment[초기 가치]-(Equipment[월간 감가 상각\n(직선)]*((TODAY()-Equipment[구매 또는 \n임대 날짜])/DaysInYear)),0)","v":25047945.205479451}]
[null,234,"제조사 모델 2","본점","좋음","현지",4,12500000,1500000,"2011-03-10",3,7.7499999999999999E-2,120000,3000000,{"$f":"IFERROR(SUMPRODUCT(--(DAY(ROW(OFFSET($A$1,,,DATE(YEAR(Equipment[[#This Row],[구매 또는 \n임대 날짜]])+Equipment[[#This Row],[대여 기간 \n(년)]],MONTH(Equipment[[#This Row],[구매 또는 \n임대 날짜]])-1,DAY(Equipment[[#This Row],[구매 또는 \n임대 날짜]]))-TODAY()))+DATE(YEAR(Equipment[[#This Row],[구매 또는 \n임대 날짜]])+Equipment[[#This Row],[대여 기간 \n(년)]],MONTH(Equipment[[#This Row],[구매 또는 \n임대 날짜]]),DAY(Equipment[[#This Row],[구매 또는 \n임대 날짜]]))-1)=DAY(Equipment[[#This Row],[구매 또는 \n임대 날짜]]))),0)","v":14},{"$f":"IFERROR(-(Equipment[초기 가치]>0)*(Equipment[초기 가치]<>Equipment[계약금])*PMT(Equipment[이율]/MonthsInYear,Equipment[대여 기간 \n(년)]*MonthsInYear,Equipment[초기 가치]-Equipment[계약금]),0)","v":343432.80007691891},{"$f":"Equipment[[#This Row],[월간 상환금]]+Equipment[월간 운영 비용]","v":463432.80007691891},{"$f":"IFERROR((Equipment[초기 가치]>0)*SLN(Equipment[초기 가치],Equipment[계약 마감 시 \n예상 가치],Equipment[대여 기간 \n(년)]),0)","v":3166666.6666666665},{"$f":"IFERROR(Equipment[월간 감가 상각\n(직선)]/MonthsInYear,0)","v":263888.88888888888},{"$f":"IFERROR(Equipment[초기 가치]-(Equipment[월간 감가 상각\n(직선)]*((TODAY()-Equipment[구매 또는 \n임대 날짜])/DaysInYear)),0)","v":6695890.4109589048}]
[null,345,"제조사 모델 2","지점 1","보통","기타",1,10000000,2500000,"2010-09-15",4,0.08,285000,1000000,{"$f":"IFERROR(SUMPRODUCT(--(DAY(ROW(OFFSET($A$1,,,DATE(YEAR(Equipment[[#This Row],[구매 또는 \n임대 날짜]])+Equipment[[#This Row],[대여 기간 \n(년)]],MONTH(Equipment[[#This Row],[구매 또는 \n임대 날짜]])-1,DAY(Equipment[[#This Row],[구매 또는 \n임대 날짜]]))-TODAY()))+DATE(YEAR(Equipment[[#This Row],[구매 또는 \n임대 날짜]])+Equipment[[#This Row],[대여 기간 \n(년)]],MONTH(Equipment[[#This Row],[구매 또는 \n임대 날짜]]),DAY(Equipment[[#This Row],[구매 또는 \n임대 날짜]]))-1)=DAY(Equipment[[#This Row],[구매 또는 \n임대 날짜]]))),0)","v":20},{"$f":"IFERROR(-(Equipment[초기 가치]>0)*(Equipment[초기 가치]<>Equipment[계약금])*PMT(Equipment[이율]/MonthsInYear,Equipment[대여 기간 \n(년)]*MonthsInYear,Equipment[초기 가치]-Equipment[계약금]),0)","v":183096.91756126861},{"$f":"Equipment[[#This Row],[월간 상환금]]+Equipment[월간 운영 비용]","v":468096.91756126861},{"$f":"IFERROR((Equipment[초기 가치]>0)*SLN(Equipment[초기 가치],Equipment[계약 마감 시 \n예상 가치],Equipment[대여 기간 \n(년)]),0)","v":2250000},{"$f":"IFERROR(Equipment[월간 감가 상각\n(직선)]/MonthsInYear,0)","v":187500},{"$f":"IFERROR(Equipment[초기 가치]-(Equipment[월간 감가 상각\n(직선)]*((TODAY()-Equipment[구매 또는 \n임대 날짜])/DaysInYear)),0)","v":4791095.8904109588}]
[null,"합계",null,null,null,null,{"$f":"SUBTOTAL(101,Equipment[[남은 서비스 연 수 ]])","v":3.3333333333333335},{"$f":"SUBTOTAL(109,Equipment[초기 가치])","v":52500000},{"$f":"SUBTOTAL(109,Equipment[계약금])","v":9000000},null,{"$f":"SUBTOTAL(101,Equipment[대여 기간 \n(년)])","v":3.6666666666666665},{"$f":"SUBTOTAL(101,Equipment[이율])","v":8.5833333333333331E-2},{"$f":"SUBTOTAL(109,Equipment[월간 운영 비용])","v":605000},{"$f":"SUBTOTAL(109,Equipment[계약 마감 시 \n예상 가치])","v":24000000},{"$f":"SUBTOTAL(101,Equipment[남은 월간 \n상환 금액])","v":19.333333333333332},{"$f":"SUBTOTAL(109,Equipment[월간 상환금])","v":1160594.3035068673},{"$f":"SUBTOTAL(109,Equipment[월간 총 비용])","v":1765594.3035068673},{"$f":"SUBTOTAL(101,Equipment[월간 감가 상각\n(직선)])","v":2638888.8888888885},{"$f":"SUBTOTAL(101,Equipment[월간 감가 상각\n(직선)2])","v":219907.40740740742},{"$f":"SUBTOTAL(109,Equipment[현재 가치])","v":36534931.506849311}]

{"sheet":"피벗 데이터","index":2,"n_rows":15,"n_cols":8,"rows_kept":15,"cut":false,"hidden":true,"merged":[]}
[null,"피벗 데이터"]
[null,"이 시트는 숨겨 두어야 합니다. 이 시트에서 피벗 테이블 구조를 바꾸면 대시보드 슬라이서에서 오류가 발생할 수 있습니다."]
[]
[]
[null,"항목 설명\n(제조사 및 모델)","(모두)"]
[null,"위치","(모두)"]
[null,"상태","(모두)"]
[null,"공급업체","(모두)"]
[null,"남은 서비스 연 수 ","(모두)"]
[]
[null,"행 레이블","개수","운영 비용","상환 금액","월간 총 비용","월 감가 상각","현재 가치"]
[null,123,1,200000,634064.58586867969,834064.58586867969,208333.33333333334,25047945.205479451]
[null,234,1,120000,343432.80007691891,463432.80007691891,263888.88888888888,6695890.4109589048]
[null,345,1,285000,183096.91756126861,468096.91756126861,187500,4791095.8904109588]
[null,"총합계",3,605000,1160594.3035068673,1765594.3035068673,659722.22222222225,36534931.506849311]